[Event "FIDE Grand Swiss 2023"]
[Site "Villa Marina, Douglas, Isle of Man"]
[Date "2023.11.01"]
[Round "7.55"]
[White "Iturrizaga Bonelli, Eduardo"]
[Black "Fier, Alexandr"]
[Result "1-0"]
[WhiteElo "2615"]
[BlackElo "2574"]
[EventDate "2023.10.25"]
[ECO "D05"]
[PlyCount "77"]
[BlackClock "00:26:58"]
[BlackFideId "2107139"]
[TimeControl "40/100 + 20/50 + 15 + 30s/move"]
[WhiteClock "00:01:35"]
[WhiteFideId "3901211"]

1.d4 {[%clk 01:40:57][%emt 00:00:03]} 1...d5 {[%clk 01:40:51][%emt 00:00:10]} 
2.Nf3 {[%clk 01:41:20][%emt 00:00:07]} 2...Nf6 {[%clk 01:40:50][%emt 00:00:31]} 
3.e3 {[%clk 01:41:43][%emt 00:00:06]} 3...e6 {[%clk 01:40:15][%emt 00:01:05]} 
4.Bd3 {[%clk 01:32:28][%emt 00:09:46]} 4...c5 {[%clk 01:40:38][%emt 00:00:06]} 
5.b3 {[%clk 01:32:52][%emt 00:00:06]} 5...b6 {[%clk 01:40:25][%emt 00:00:43]} 
6.O-O {[%clk 01:33:13][%emt 00:00:08]} 6...Bb7 {[%clk 01:40:53][%emt 00:00:03]} 
7.Bb2 {[%clk 01:33:36][%emt 00:00:08]} 7...Nc6 {[%clk 01:41:19][%emt 00:00:04]} 
8.Nbd2 {[%clk 01:33:56][%emt 00:00:10]} 8...Be7 {[%clk 01:41:44][%emt 00:00:05]} 
9.dxc5 {[%clk 01:34:01][%emt 00:00:25]} 9...bxc5 {[%clk 01:42:00][%emt
00:00:14]} 10.c4 {[%clk 01:34:26][%emt 00:00:05]} 10...d4 {[%clk 01:41:56][%emt
00:00:34]} 11.exd4 {[%clk 01:34:19][%emt 00:00:36]} 11...cxd4 {[%clk
01:42:21][%emt 00:00:05]} 12.a3 {[%clk 01:22:39][%emt 00:12:11]} 12...a5 {[%clk
01:42:46][%emt 00:00:05]} 13.Qc2 {[%clk 01:23:04][%emt 00:00:03]} 13...h6 
{[%clk 01:41:29][%emt 00:01:47]} 14.Ne4 {[%clk 01:17:35][%emt 00:05:59]} 
14...O-O {[%clk 01:40:33][%emt 00:01:27]} 15.Rad1 {[%clk 01:13:46][%emt
00:04:19]} 15...e5 {[%clk 01:30:08][%emt 00:10:54]} 16.Rfe1 {[%clk
01:05:09][%emt 00:09:08]} 16...Nd7 {[%clk 01:24:38][%emt 00:05:59]} 17.Ng3 
{[%clk 01:03:00][%emt 00:02:40]} 17...Re8 {[%clk 01:21:53][%emt 00:03:15]} 
18.Bh7+ {[%clk 00:58:48][%emt 00:04:42]} 18...Kh8 {[%clk 01:21:37][%emt
00:00:46]} 19.Be4 {[%clk 00:58:17][%emt 00:01:01]} 19...Qc7 {[%clk
01:14:37][%emt 00:07:30]} 20.Bd5 {[%clk 00:41:20][%emt 00:17:27]} 20...Nb4 
{[%clk 01:11:27][%emt 00:03:40]} 21.axb4 {[%clk 00:06:46][%emt 00:35:04]} 
21...Bxd5 {[%clk 01:11:52][%emt 00:00:05]} 22.Nxe5 {[%clk 00:04:40][%emt
00:02:36]} 22...Nxe5 {[%clk 01:11:46][%emt 00:00:35]} 23.Bxd4 {[%clk
00:04:47][%emt 00:00:24]} 23...Ng6 {[%clk 01:00:54][%emt 00:11:22]} 24.Nh5 
{[%clk 00:01:41][%emt 00:03:36]} 24...Bxg2 {[%clk 00:45:35][%emt 00:15:49]} 
25.Nxg7 {[%clk 00:02:00][%emt 00:00:11]} 25...Rg8 {[%clk 00:46:04][%emt
00:00:01]} 26.Nh5+ {[%clk 00:01:52][%emt 00:00:39]} 26...Ne5 {[%clk
00:42:18][%emt 00:04:15]} 27.Ng3 {[%clk 00:02:00][%emt 00:00:22]} 27...Bf6 
{[%clk 00:42:33][%emt 00:00:16]} 28.Bxe5 {[%clk 00:02:03][%emt 00:00:26]} 
28...Bxe5 {[%clk 00:42:59][%emt 00:00:03]} 29.Kxg2 {[%clk 00:02:29][%emt
00:00:05]} 29...axb4 {[%clk 00:43:27][%emt 00:00:03]} 30.Qf5 {[%clk
00:01:54][%emt 00:01:04]} 30...Rg5 {[%clk 00:36:57][%emt 00:07:00]} 31.Qf3 
{[%clk 00:02:18][%emt 00:00:05]} 31...Ra6 {[%clk 00:34:06][%emt 00:03:22]} 
32.Rd5 {[%clk 00:01:49][%emt 00:00:59]} 32...Rf6 {[%clk 00:33:07][%emt
00:01:29]} 33.Qd3 {[%clk 00:01:30][%emt 00:00:49]} 33...Kg7 {[%clk
00:32:16][%emt 00:01:22]} 34.Re4 {[%clk 00:01:15][%emt 00:00:45]} 34...Bxg3 
{[%clk 00:29:52][%emt 00:02:53]} 35.hxg3 {[%clk 00:01:08][%emt 00:00:37]} 
35...Qc6 {[%clk 00:30:20][%emt 00:00:03]} 36.Qd4 {[%clk 00:00:53][%emt
00:00:43]} 36...Kg6 {[%clk 00:30:11][%emt 00:00:40]} 37.Ree5 {[%clk
00:01:01][%emt 00:00:22]} 37...Rxe5 {[%clk 00:29:23][%emt 00:01:18]} 38.Qxe5 
{[%clk 00:01:27][%emt 00:00:04]} 38...Re6 {[%clk 00:29:50][%emt 00:00:03]} 
39.Qb8 {[%clk 00:01:35][%emt 00:00:22]} 1-0

[Event "FIDE Grand Swiss 2023"]
[Site "Villa Marina, Douglas, Isle of Man"]
[Date "2023.11.01"]
[Round "7.56"]
[White "Wu, Li"]
[Black "Krasenkow, Michal"]
[Result "1/2-1/2"]
[WhiteElo "2303"]
[BlackElo "2531"]
[EventDate "2023.10.25"]
[ECO "A41"]
[PlyCount "94"]
[BlackClock "00:45:52"]
[BlackFideId "1113100"]
[TimeControl "40/100 + 20/50 + 15 + 30s/move"]
[WhiteClock "00:52:54"]
[WhiteFideId "411086"]

1.d4 {[%clk 01:40:56][%emt 00:00:02]} 1...d6 {[%clk 01:40:55][%emt 00:00:06]} 
2.Nf3 {[%clk 01:40:55][%emt 00:00:31]} 2...Bg4 {[%clk 01:41:19][%emt 00:00:06]} 
3.e4 {[%clk 01:40:38][%emt 00:00:48]} 3...Nd7 {[%clk 01:39:12][%emt 00:02:37]} 
4.Nbd2 {[%clk 01:38:35][%emt 00:02:31]} 4...e6 {[%clk 01:35:58][%emt 00:03:44]} 
5.h3 {[%clk 01:38:30][%emt 00:00:36]} 5...Bh5 {[%clk 01:36:22][%emt 00:00:06]} 
6.c3 {[%clk 01:35:44][%emt 00:03:15]} 6...Ngf6 {[%clk 01:34:26][%emt 00:02:25]} 
7.Bd3 {[%clk 01:35:37][%emt 00:00:38]} 7...Be7 {[%clk 01:33:09][%emt 00:01:48]} 
8.Qe2 {[%clk 01:30:47][%emt 00:05:20]} 8...O-O {[%clk 01:31:39][%emt 00:02:00]} 
9.g4 {[%clk 01:18:22][%emt 00:12:54]} 9...Bg6 {[%clk 01:31:49][%emt 00:00:19]} 
10.Nh4 {[%clk 01:18:45][%emt 00:00:08]} 10...c5 {[%clk 01:30:23][%emt 00:01:56]} 
11.O-O {[%clk 01:03:24][%emt 00:15:52]} 11...cxd4 {[%clk 01:28:11][%emt
00:02:41]} 12.cxd4 {[%clk 01:03:20][%emt 00:00:34]} 12...e5 {[%clk
01:28:31][%emt 00:00:11]} 13.f4 {[%clk 00:53:35][%emt 00:10:14]} 13...exf4 
{[%clk 01:28:29][%emt 00:00:32]} 14.Nxg6 {[%clk 00:54:01][%emt 00:00:05]} 
14...hxg6 {[%clk 01:26:25][%emt 00:02:34]} 15.Nf3 {[%clk 00:52:36][%emt
00:01:55]} 15...Qb6 {[%clk 01:24:07][%emt 00:02:47]} 16.Kg2 {[%clk
00:45:53][%emt 00:07:13]} 16...g5 {[%clk 01:19:22][%emt 00:05:15]} 17.e5 {[%clk
00:43:36][%emt 00:02:47]} 17...dxe5 {[%clk 01:17:11][%emt 00:02:41]} 18.dxe5 
{[%clk 00:44:03][%emt 00:00:03]} 18...Ne8 {[%clk 01:13:37][%emt 00:04:04]} 
19.h4 {[%clk 00:44:19][%emt 00:00:14]} 19...gxh4 {[%clk 01:10:46][%emt
00:03:21]} 20.Qe4 {[%clk 00:39:00][%emt 00:05:49]} 20...g6 {[%clk 01:10:43][%emt
00:00:33]} 21.Qxf4 {[%clk 00:39:13][%emt 00:00:17]} 21...Nc7 {[%clk
01:06:19][%emt 00:04:54]} 22.Qh6 {[%clk 00:35:28][%emt 00:04:15]} 22...Qe6 
{[%clk 00:47:41][%emt 00:19:08]} 23.Kh3 {[%clk 00:35:24][%emt 00:00:34]} 
23...Nxe5 {[%clk 00:43:09][%emt 00:05:03]} 24.Nxe5 {[%clk 00:35:46][%emt
00:00:08]} 24...Qxe5 {[%clk 00:43:33][%emt 00:00:05]} 25.Bf4 {[%clk
00:36:12][%emt 00:00:04]} 25...Qd4 {[%clk 00:42:42][%emt 00:01:21]} 26.Bxg6 
{[%clk 00:29:02][%emt 00:07:40]} 26...fxg6 {[%clk 00:42:48][%emt 00:00:24]} 
27.Qxg6+ {[%clk 00:29:29][%emt 00:00:03]} 27...Qg7 {[%clk 00:43:10][%emt
00:00:07]} 28.Qxg7+ {[%clk 00:29:56][%emt 00:00:04]} 28...Kxg7 {[%clk
00:43:34][%emt 00:00:07]} 29.Bxc7 {[%clk 00:30:23][%emt 00:00:03]} 29...Rac8 
{[%clk 00:36:18][%emt 00:07:45]} 30.Be5+ {[%clk 00:28:05][%emt 00:02:48]} 
30...Kg6 {[%clk 00:36:41][%emt 00:00:06]} 31.Rxf8 {[%clk 00:26:15][%emt
00:02:21]} 31...Rxf8 {[%clk 00:36:58][%emt 00:00:13]} 32.Re1 {[%clk
00:19:13][%emt 00:07:32]} 32...Rf3+ {[%clk 00:34:40][%emt 00:02:47]} 33.Kg2 
{[%clk 00:19:39][%emt 00:00:05]} 33...Rd3 {[%clk 00:35:02][%emt 00:00:08]} 
34.Bf4 {[%clk 00:19:38][%emt 00:00:31]} 34...Bg5 {[%clk 00:28:50][%emt
00:06:42]} 35.Re6+ {[%clk 00:19:28][%emt 00:00:40]} 35...Kf7 {[%clk
00:29:14][%emt 00:00:05]} 36.Rd6 {[%clk 00:19:41][%emt 00:00:18]} 36...Rxd6 
{[%clk 00:23:24][%emt 00:06:21]} 37.Bxd6 {[%clk 00:20:07][%emt 00:00:04]} 
37...Ke6 {[%clk 00:21:29][%emt 00:02:24]} 38.Bc5 {[%clk 00:20:33][%emt
00:00:04]} 38...a5 {[%clk 00:21:56][%emt 00:00:03]} 39.Kh3 {[%clk 00:19:41][%emt
00:01:22]} 39...a4 {[%clk 00:02:08][%emt 00:20:19]} 40.Bf2 {[%clk 00:16:46][%emt
00:03:24]} 40...Ke5 {[%clk 00:01:46][%emt 00:00:52]} 41.Bxh4 {[%clk
00:16:52][%emt 00:00:24]} 41...Bc1 {[%clk 00:50:29][%emt 00:01:47]} 42.b3 
{[%clk 01:07:19][%emt 00:00:03]} 42...b5 {[%clk 00:46:18][%emt 00:04:41]} 
43.Be7 {[%clk 00:53:51][%emt 00:13:58]} 43...Kd4 {[%clk 00:46:18][%emt
00:00:30]} 44.Kh4 {[%clk 00:52:04][%emt 00:02:17]} 44...Kc3 {[%clk
00:44:52][%emt 00:01:56]} 45.bxa4 {[%clk 00:52:18][%emt 00:00:16]} 45...bxa4 
{[%clk 00:45:10][%emt 00:00:12]} 46.g5 {[%clk 00:52:33][%emt 00:00:15]} 
46...Bxg5+ {[%clk 00:45:30][%emt 00:00:11]} 47.Kxg5 {[%clk 00:53:00][%emt
00:00:02]} 47...Kc4 {[%clk 00:45:52] [%emt 00:00:09]} 1/2-1/2

[Event "FIDE Grand Swiss 2023"]
[Site "Villa Marina, Douglas, Isle of Man"]
[Date "2023.11.01"]
[Round "7.57"]
[White "Greenfeld, Alon"]
[Black "Kolbus, Dietmar"]
[Result "1-0"]
[WhiteElo "2455"]
[BlackElo "2225"]
[EventDate "2023.10.25"]
[ECO "D72"]
[PlyCount "63"]
[BlackClock "00:13:35"]
[BlackFideId "4610628"]
[TimeControl "40/100 + 20/50 + 15 + 30s/move"]
[WhiteClock "00:17:13"]
[WhiteFideId "2800039"]

1.d4 {[%clk 01:39:41][%emt 00:01:18]} 1...Nf6 {[%clk 01:40:39][%emt 00:00:21]} 
2.c4 {[%clk 01:38:12][%emt 00:01:59]} 2...g6 {[%clk 01:41:02][%emt 00:00:07]} 
3.g3 {[%clk 01:36:25][%emt 00:02:18]} 3...Bg7 {[%clk 01:40:14][%emt 00:01:18]} 
4.Bg2 {[%clk 01:36:43][%emt 00:00:11]} 4...d5 {[%clk 01:40:24][%emt 00:00:20]} 
5.cxd5 {[%clk 01:35:45][%emt 00:01:27]} 5...Nxd5 {[%clk 01:40:46][%emt
00:00:09]} 6.e4 {[%clk 01:32:43][%emt 00:03:33]} 6...Nb6 {[%clk 01:41:10][%emt
00:00:06]} 7.Ne2 {[%clk 01:33:04][%emt 00:00:08]} 7...e5 {[%clk 01:39:38][%emt
00:02:02]} 8.d5 {[%clk 01:33:14][%emt 00:00:20]} 8...c6 {[%clk 01:39:03][%emt
00:01:05]} 9.Nec3 {[%clk 01:32:29][%emt 00:01:16]} 9...O-O {[%clk 01:38:12][%emt
00:01:21]} 10.O-O {[%clk 01:32:36][%emt 00:00:22]} 10...N8d7 {[%clk
01:30:23][%emt 00:08:19]} 11.a4 {[%clk 01:25:57][%emt 00:07:09]} 11...a5 {[%clk
01:30:00][%emt 00:00:53]} 12.Na3 {[%clk 01:18:45][%emt 00:07:42]} 12...Re8 
{[%clk 01:28:29][%emt 00:02:01]} 13.Be3 {[%clk 01:04:44][%emt 00:14:30]} 
13...Bf8 {[%clk 01:27:24][%emt 00:01:35]} 14.Qe2 {[%clk 01:00:18][%emt
00:04:56]} 14...Bc5 {[%clk 01:23:47][%emt 00:04:07]} 15.Rfd1 {[%clk
00:51:50][%emt 00:08:59]} 15...Qe7 {[%clk 01:13:33][%emt 00:10:43]} 16.Rac1 
{[%clk 00:52:13][%emt 00:00:08]} 16...Bxe3 {[%clk 00:56:17][%emt 00:17:46]} 
17.Qxe3 {[%clk 00:52:40][%emt 00:00:03]} 17...Qb4 {[%clk 00:56:12][%emt
00:00:35]} 18.Na2 {[%clk 00:47:23][%emt 00:05:47]} 18...Qxa4 {[%clk
00:54:02][%emt 00:02:40]} 19.d6 {[%clk 00:37:33][%emt 00:10:20]} 19...c5 {[%clk
00:38:04][%emt 00:16:28]} 20.Bf1 {[%clk 00:37:05][%emt 00:00:57]} 20...c4 
{[%clk 00:38:20][%emt 00:00:15]} 21.Nc3 {[%clk 00:29:55][%emt 00:07:40]} 
21...Qb4 {[%clk 00:25:00][%emt 00:13:49]} 22.Nxc4 {[%clk 00:19:16][%emt
00:11:09]} 22...Nxc4 {[%clk 00:15:06][%emt 00:10:25]} 23.Bxc4 {[%clk
00:19:40][%emt 00:00:05]} 23...Nf6 {[%clk 00:15:14][%emt 00:00:22]} 24.Qf3 
{[%clk 00:15:34][%emt 00:04:35]} 24...Kg7 {[%clk 00:15:28][%emt 00:00:17]} 
25.Qxf6+ {[%clk 00:15:32][%emt 00:00:32]} 25...Kxf6 {[%clk 00:15:50][%emt
00:00:08]} 26.Nd5+ {[%clk 00:15:58][%emt 00:00:04]} 26...Kg7 {[%clk
00:13:35][%emt 00:02:45]} 27.Nxb4 {[%clk 00:16:21][%emt 00:00:08]} 27...axb4 
{[%clk 00:13:33][%emt 00:00:32]} 28.d7 {[%clk 00:16:37][%emt 00:00:14]} 
28...Rd8 {[%clk 00:13:36][%emt 00:00:26]} 29.dxc8=Q {[%clk 00:16:44][%emt
00:00:23]} 29...Raxc8 {[%clk 00:13:48][%emt 00:00:18]} 30.Rxd8 {[%clk
00:16:46][%emt 00:00:28]} 30...Rxd8 {[%clk 00:14:09][%emt 00:00:09]} 31.Bd5 
{[%clk 00:17:09][%emt 00:00:06]} 31...Rd7 {[%clk 00:14:26] [%emt 00:00:15]} 
32.Rc4 {[%clk 00:17:13] [%emt 00:00:25]} 1-0

[Event "FIDE Grand Swiss 2023"]
[Site "Villa Marina, Douglas, Isle of Man"]
[Date "2023.11.02"]
[Round "8.2"]
[White "Caruana, Fabiano"]
[Black "Bacrot, Etienne"]
[Result "1-0"]
[WhiteElo "2786"]
[BlackElo "2669"]
[EventDate "2023.10.25"]
[ECO "B48"]
[PlyCount "120"]
[BlackClock "00:01:14"]
[BlackFideId "605506"]
[TimeControl "40/100 + 20/50 + 15 + 30s/move"]
[WhiteClock "00:07:33"]
[WhiteFideId "2020009"]

1.e4 {[%clk 01:40:54][%emt 00:00:05]} 1...c5 {[%clk 01:40:56][%emt 00:00:04]} 
2.Nf3 {[%clk 01:41:17][%emt 00:00:07]} 2...e6 {[%clk 01:41:21][%emt 00:00:04]} 
3.d4 {[%clk 01:41:37][%emt 00:00:12]} 3...cxd4 {[%clk 01:41:47][%emt 00:00:04]} 
4.Nxd4 {[%clk 01:42:03][%emt 00:00:03]} 4...Nc6 {[%clk 01:42:13][%emt 00:00:05]} 
5.Nc3 {[%clk 01:42:10][%emt 00:00:23]} 5...Qc7 {[%clk 01:42:35][%emt 00:00:06]} 
6.Be3 {[%clk 01:42:07][%emt 00:00:34]} 6...a6 {[%clk 01:42:49][%emt 00:00:16]} 
7.a3 {[%clk 01:42:22][%emt 00:00:16]} 7...b5 {[%clk 01:40:35][%emt 00:02:44]} 
8.Nxc6 {[%clk 01:42:05][%emt 00:00:47]} 8...Qxc6 {[%clk 01:39:58][%emt
00:01:06]} 9.Be2 {[%clk 01:42:19][%emt 00:00:16]} 9...Bb7 {[%clk 01:38:17][%emt
00:02:11]} 10.O-O {[%clk 01:42:37][%emt 00:00:13]} 10...Ne7 {[%clk
01:26:14][%emt 00:12:33]} 11.Qd2 {[%clk 01:42:28][%emt 00:00:40]} 11...Nf5 
{[%clk 01:19:27][%emt 00:07:16]} 12.Bf4 {[%clk 01:42:28][%emt 00:00:31]} 
12...Nh4 {[%clk 01:14:14][%emt 00:05:42]} 13.Rfd1 {[%clk 01:36:45][%emt
00:06:12]} 13...Be7 {[%clk 00:55:25][%emt 00:19:20]} 14.Bg5 {[%clk
01:25:51][%emt 00:11:24]} 14...Bxg5 {[%clk 00:55:50][%emt 00:00:06]} 15.Qxg5 
{[%clk 01:26:18][%emt 00:00:03]} 15...Ng6 {[%clk 00:56:14][%emt 00:00:05]} 
16.Rd4 {[%clk 01:15:24][%emt 00:11:24]} 16...O-O {[%clk 00:47:45][%emt
00:09:00]} 17.Rad1 {[%clk 01:11:01][%emt 00:04:53]} 17...Rad8 {[%clk
00:46:56][%emt 00:01:18]} 18.a4 {[%clk 01:01:59][%emt 00:09:32]} 18...bxa4 
{[%clk 00:42:15][%emt 00:05:11]} 19.Qa5 {[%clk 01:00:45][%emt 00:01:45]} 
19...d5 {[%clk 00:27:39][%emt 00:15:06]} 20.exd5 {[%clk 00:57:33][%emt
00:03:42]} 20...exd5 {[%clk 00:27:50][%emt 00:00:19]} 21.Bf3 {[%clk
00:48:23][%emt 00:09:40]} 21...Qf6 {[%clk 00:28:08][%emt 00:00:10]} 22.Qxa4 
{[%clk 00:45:33][%emt 00:03:21]} 22...Ne7 {[%clk 00:24:59][%emt 00:03:39]} 
23.h3 {[%clk 00:37:43][%emt 00:08:21]} 23...h6 {[%clk 00:21:15][%emt 00:04:13]} 
24.Ne4 {[%clk 00:30:07][%emt 00:08:06]} 24...Qb6 {[%clk 00:19:19][%emt
00:02:26]} 25.Rb4 {[%clk 00:28:24][%emt 00:02:13]} 25...Bc6 {[%clk
00:14:23][%emt 00:05:26]} 26.Qa3 {[%clk 00:22:56][%emt 00:05:59]} 26...Qc7 
{[%clk 00:11:31][%emt 00:03:21]} 27.Ng3 {[%clk 00:22:30][%emt 00:00:56]} 
27...Bb5 {[%clk 00:11:45][%emt 00:00:16]} 28.Rbd4 {[%clk 00:21:08][%emt
00:01:52]} 28...Rfe8 {[%clk 00:10:19][%emt 00:01:57]} 29.c3 {[%clk
00:20:19][%emt 00:01:19]} 29...Bc4 {[%clk 00:07:33][%emt 00:03:15]} 30.b3 
{[%clk 00:19:29][%emt 00:01:21]} 30...Bb5 {[%clk 00:08:02]} 31.Qb2 {[%clk
00:19:49][%emt 00:00:10]} 31...Rc8 {[%clk 00:08:27][%emt 00:00:05]} 32.Rc1 
{[%clk 00:14:47][%emt 00:05:32]} 32...Nc6 {[%clk 00:08:27][%emt 00:00:30]} 
33.Rdd1 {[%clk 00:14:38][%emt 00:00:39]} 33...Ne5 {[%clk 00:08:46][%emt
00:00:10]} 34.Be2 {[%clk 00:15:04][%emt 00:00:04]} 34...Bxe2 {[%clk
00:06:23][%emt 00:02:53]} 35.Qxe2 {[%clk 00:15:15][%emt 00:00:20]} 35...Qc6 
{[%clk 00:05:02][%emt 00:01:50]} 36.Nf5 {[%clk 00:14:55][%emt 00:00:50]} 
36...Qf6 {[%clk 00:04:38][%emt 00:00:55]} 37.Ne3 {[%clk 00:12:54][%emt
00:02:32]} 37...Ng6 {[%clk 00:04:27][%emt 00:00:41]} 38.Qg4 {[%clk
00:09:51][%emt 00:03:33]} 38...Ne7 {[%clk 00:04:28][%emt 00:00:29]} 39.Rd4 
{[%clk 00:06:17][%emt 00:04:04]} 39...a5 {[%clk 00:04:15][%emt 00:00:43]} 
40.Qd1 {[%clk 00:05:02][%emt 00:01:44]} 40...Rc5 {[%clk 00:03:25][%emt
00:01:20]} 41.Qd2 {[%clk 00:01:15][%emt 00:04:17]} 41...Rec8 {[%clk
00:41:45][%emt 00:12:09]} 42.Rd3 {[%clk 00:50:11][%emt 00:01:34]} 42...h5 
{[%clk 00:29:05][%emt 00:13:10]} 43.Rc2 {[%clk 00:40:09][%emt 00:10:32]} 
43...g6 {[%clk 00:28:02][%emt 00:01:33]} 44.Rc1 {[%clk 00:39:56][%emt 00:00:44]} 
44...Kh7 {[%clk 00:20:51][%emt 00:07:40]} 45.Rd4 {[%clk 00:36:45][%emt
00:03:41]} 45...Qg5 {[%clk 00:17:25][%emt 00:03:55]} 46.g3 {[%clk 00:33:19][%emt
00:03:58]} 46...Kg8 {[%clk 00:14:31][%emt 00:03:23]} 47.Re1 {[%clk
00:32:04][%emt 00:01:45]} 47...Qf6 {[%clk 00:13:47][%emt 00:01:14]} 48.b4 
{[%clk 00:26:00][%emt 00:06:34]} 48...axb4 {[%clk 00:13:05][%emt 00:01:13]} 
49.cxb4 {[%clk 00:26:24][%emt 00:00:06]} 49...Rb5 {[%clk 00:13:33][%emt
00:00:02]} 50.Rf4 {[%clk 00:22:15][%emt 00:04:39]} 50...Qc3 {[%clk
00:11:51][%emt 00:02:11]} 51.Qxc3 {[%clk 00:15:15][%emt 00:07:31]} 51...Rxc3 
{[%clk 00:12:15][%emt 00:00:05]} 52.Ng4 {[%clk 00:14:37][%emt 00:01:08]} 
52...Kf8 {[%clk 00:03:19][%emt 00:09:26]} 53.Ne5 {[%clk 00:09:41][%emt
00:05:26]} 53...f5 {[%clk 00:03:48][%emt 00:00:02]} 54.Ra1 {[%clk 00:09:59][%emt
00:00:11]} 54...g5 {[%clk 00:01:17][%emt 00:03:01]} 55.Rd4 {[%clk 00:09:34]
[%emt 00:00:55]} 55...Nc6 {[%clk 00:01:08] [%emt 00:00:40]} 56.Nxc6 {[%clk
00:08:25] [%emt 00:01:39]} 56...Rxc6 {[%clk 00:01:36] [%emt 00:00:01]} 57.Ra5 
{[%clk 00:08:36] [%emt 00:00:19]} 57...Rxa5 {[%clk 00:01:58] [%emt 00:00:08]} 
58.bxa5 {[%clk 00:09:03] [%emt 00:00:03]} 58...Rc5 {[%clk 00:00:40] [%emt
00:01:49]} ( 58...Rd6 59.Ra4 Ra6 ) 59.Ra4 {[%clk 00:09:18] [%emt 00:00:15]} 
59...Ke7 {[%clk 00:00:45] [%emt 00:00:24]} 60.a6 {[%clk 00:08:36] [%emt
00:01:12]} 60...Rc8 {[%clk 00:01:14]} ( 60...Rc8 61.Kf1 Ra8 62.a7 Kf6 63.Ke2 f4 
64.gxf4 gxf4 65.h4 Ke7 ) 1-0